[Event "Live Chess"]
[Site "Chess.com"]
[Date "2023.05.20"]
[Round "-"]
[White "SupremeTactician"]
[Black "seasidecastle27"]
[Result "1-0"]
[WhiteElo "2405"]
[BlackElo "1897"]
[TimeControl "300"]
[EndTime "9:33:04 PDT"]
[Termination "SupremeTactician won by checkmate"]

1. e4 {[%clk 0:04:59.2]} 1... d6 {[%clk 0:04:56.9]} 2. d4 {[%clk 0:04:58.3]}
2... e5 {[%clk 0:04:54.7]} 3. dxe5 {[%clk 0:04:57]} 3... Nc6 {[%clk 0:04:53.2]}
4. exd6 {[%clk 0:04:55]} 4... Bxd6 {[%clk 0:04:51.3]} 5. Nc3 {[%clk 0:04:52.4]}
5... Nf6 {[%clk 0:04:46.6]} 6. Bb5 {[%clk 0:04:51]} 6... Bd7 {[%clk 0:04:44.7]}
7. Bg5 {[%clk 0:04:49.4]} 7... h6 {[%clk 0:04:39.6]} 8. Bh4 {[%clk 0:04:47]}
8... g5 {[%clk 0:04:37.4]} 9. Bg3 {[%clk 0:04:46.5]} 9... Bxg3 {[%clk
0:04:33.7]} 10. hxg3 {[%clk 0:04:46.4]} 10... Qe7 {[%clk 0:04:32.3]} 11. Bxc6
{[%clk 0:04:13.3]} 11... Bxc6 {[%clk 0:04:27.5]} 12. Qd4 {[%clk 0:04:11.2]}
12... Rd8 {[%clk 0:04:22.6]} 13. Qe3 {[%clk 0:04:08.7]} 13... Nxe4 {[%clk
0:04:15.7]} 14. Nxe4 {[%clk 0:04:00.7]} 14... Qxe4 {[%clk 0:04:13.8]} 15. Nf3
{[%clk 0:03:48.5]} 15... Qxe3+ {[%clk 0:04:04.3]} 16. fxe3 {[%clk 0:03:48.4]}
16... Ke7 {[%clk 0:03:47.1]} 17. Rd1 {[%clk 0:03:40]} 17... Rxd1+ {[%clk
0:03:42.8]} 18. Kxd1 {[%clk 0:03:39.9]} 18... f6 {[%clk 0:03:40]} 19. c4 {[%clk
0:03:22.2]} 19... Bxf3+ {[%clk 0:03:37.4]} 20. gxf3 {[%clk 0:03:21.4]} 20... Kf7
{[%clk 0:03:36.3]} 21. Ke2 {[%clk 0:03:19.6]} 21... h5 {[%clk 0:03:31]} 22. Rd1
{[%clk 0:03:14.7]} 22... Ke7 {[%clk 0:03:28.3]} 23. Kf2 {[%clk 0:03:09.2]} 23...
Rd8 {[%clk 0:03:21.6]} 24. Rxd8 {[%clk 0:02:47.4]} 24... Kxd8 {[%clk 0:03:20]}
25. Kg2 {[%clk 0:02:45.9]} 25... Ke7 {[%clk 0:03:18.1]} 26. Kh3 {[%clk
0:02:45.3]} 26... f5 {[%clk 0:03:11]} 27. f4 {[%clk 0:02:42.4]} 27... Kf6 {[%clk
0:03:02.9]} 28. fxg5+ {[%clk 0:02:34.1]} 28... Kxg5 {[%clk 0:03:01.6]} 29. c5
{[%clk 0:02:27.5]} 29... a5 {[%clk 0:02:55.5]} 30. a4 {[%clk 0:02:20.1]} 30...
Kh6 {[%clk 0:02:40.8]} 31. Kg2 {[%clk 0:02:12.2]} 31... Kg5 {[%clk 0:02:38.7]}
32. Kf3 {[%clk 0:02:11.6]} 32... Kf6 {[%clk 0:02:26.8]} 33. Kf4 {[%clk
0:02:06.8]} 33... Kg6 {[%clk 0:02:24.9]} 34. e4 {[%clk 0:01:14.1]} 34... fxe4
{[%clk 0:02:22.5]} 35. Kxe4 {[%clk 0:01:14]} 35... Kg5 {[%clk 0:02:20.8]} 36. c6
{[%clk 0:01:11.9]} 36... bxc6 {[%clk 0:02:16.3]} 37. b4 {[%clk 0:01:10.8]} 37...
axb4 {[%clk 0:02:10.2]} 38. a5 {[%clk 0:01:10.2]} 38... b3 {[%clk 0:02:08.2]}
39. Kd3 {[%clk 0:01:09.5]} 39... Kg4 {[%clk 0:02:06.4]} 40. a6 {[%clk
0:01:08.7]} 40... Kxg3 {[%clk 0:02:05.4]} 41. a7 {[%clk 0:01:08.2]} 41... h4
{[%clk 0:02:03.2]} 42. a8=Q {[%clk 0:01:07.5]} 42... h3 {[%clk 0:02:01.9]} 43.
Qg8+ {[%clk 0:01:02.1]} 43... Kf2 {[%clk 0:01:57.2]} 44. Qh7 {[%clk 0:00:49.6]}
44... Kg2 {[%clk 0:01:55]} 45. Qg6+ {[%clk 0:00:49.2]} 45... Kh1 {[%clk
0:01:52.5]} 46. Qg4 {[%clk 0:00:36.6]} 46... h2 {[%clk 0:01:50.3]} 47. Ke2
{[%clk 0:00:34.9]} 47... b2 {[%clk 0:01:47.5]} 48. Kf2 {[%clk 0:00:34.8]} 48...
b1=Q {[%clk 0:01:42.7]} 49. Qg2# {[%clk 0:00:34.7]} 1-0

[Event "Live Chess"]
[Site "Chess.com"]
[Date "2023.05.20"]
[Round "-"]
[White "azimchess2019"]
[Black "bedsdrout"]
[Result "1-0"]
[WhiteElo "1329"]
[BlackElo "100"]
[TimeControl "300"]
[EndTime "9:33:13 PDT"]
[Termination "azimchess2019 won by checkmate"]

1. d4 {[%clk 0:04:59.1]} 1... e6 {[%clk 0:04:56.9]} 2. c4 {[%clk 0:04:58.8]}
2... b5 {[%clk 0:04:43.5]} 3. cxb5 {[%clk 0:04:57.2]} 3... c5 {[%clk 0:04:38.9]}
4. dxc5 {[%clk 0:04:56.3]} 4... Bxc5 {[%clk 0:04:37.2]} 5. Nf3 {[%clk
0:04:55.8]} 5... Qf6 {[%clk 0:04:33.9]} 6. e3 {[%clk 0:04:54.4]} 6... Nh6 {[%clk
0:04:29.1]} 7. Nc3 {[%clk 0:04:53.3]} 7... Ng4 {[%clk 0:04:26.7]} 8. Ne4 {[%clk
0:04:51.3]} 8... Qg6 {[%clk 0:04:10.1]} 9. Nxc5 {[%clk 0:04:49]} 9... e5 {[%clk
0:04:02.1]} 10. h3 {[%clk 0:04:41.4]} 10... e4 {[%clk 0:03:59.1]} 11. hxg4
{[%clk 0:04:40.1]} 11... O-O {[%clk 0:03:55.9]} 12. Nd4 {[%clk 0:04:33.5]} 12...
d6 {[%clk 0:03:45.5]} 13. Ncb3 {[%clk 0:04:32.1]} 13... Bxg4 {[%clk 0:03:44.5]}
14. f3 {[%clk 0:04:29.2]} 14... Bh5 {[%clk 0:03:35]} 15. Be2 {[%clk 0:04:24.7]}
15... Qxg2 {[%clk 0:03:27.5]} 16. Rxh5 {[%clk 0:04:23.2]} 16... Rc8 {[%clk
0:03:12.9]} 17. fxe4 {[%clk 0:04:12.9]} 17... Na6 {[%clk 0:03:05]} 18. bxa6
{[%clk 0:04:11.6]} 18... Rc7 {[%clk 0:03:03.9]} 19. Bf3 {[%clk 0:04:10.9]} 19...
Qg1+ {[%clk 0:02:56.4]} 20. Ke2 {[%clk 0:04:10.3]} 20... Qg3 {[%clk 0:02:50.4]}
21. Nf5 {[%clk 0:04:04]} 21... Qg6 {[%clk 0:02:33.1]} 22. e5 {[%clk 0:04:03.2]}
22... dxe5 {[%clk 0:02:29.4]} 23. Qd6 {[%clk 0:03:56]} 23... Rac8 {[%clk
0:02:12.9]} 24. Ne7+ {[%clk 0:03:51.5]} 24... Kf8 {[%clk 0:02:03]} 25. Nxg6+
{[%clk 0:03:46.1]} 25... Ke8 {[%clk 0:01:57.3]} 26. Rxe5+ {[%clk 0:03:43.6]}
26... Re7 {[%clk 0:01:41.3]} 27. Qxe7# {[%clk 0:03:43.5]} 1-0

[Event "Live Chess"]
[Site "Chess.com"]
[Date "2023.05.20"]
[Round "-"]
[White "Albul"]
[Black "wadsy27"]
[Result "0-1"]
[WhiteElo "2194"]
[BlackElo "2587"]
[TimeControl "300"]
[EndTime "9:33:16 PDT"]
[Termination "wadsy27 won on time"]

1. e4 {[%clk 0:04:58.8]} 1... c5 {[%clk 0:04:56.8]} 2. Nc3 {[%clk 0:04:57.4]}
2... e6 {[%clk 0:04:51.4]} 3. d3 {[%clk 0:04:56.7]} 3... Nc6 {[%clk 0:04:48.3]}
4. g3 {[%clk 0:04:52.7]} 4... Nf6 {[%clk 0:04:44.5]} 5. Bg2 {[%clk 0:04:52.3]}
5... Be7 {[%clk 0:04:41.9]} 6. f4 {[%clk 0:04:50.5]} 6... d5 {[%clk 0:04:40.3]}
7. e5 {[%clk 0:04:49.6]} 7... Nd7 {[%clk 0:04:39.2]} 8. Nf3 {[%clk 0:04:48.6]}
8... b5 {[%clk 0:04:34.5]} 9. O-O {[%clk 0:04:45.5]} 9... b4 {[%clk 0:04:30.9]}
10. Ne2 {[%clk 0:04:43.3]} 10... g6 {[%clk 0:04:26.2]} 11. c3 {[%clk 0:04:40.7]}
11... bxc3 {[%clk 0:04:21.4]} 12. bxc3 {[%clk 0:04:39.7]} 12... Ba6 {[%clk
0:03:53.2]} 13. Rf2 {[%clk 0:04:24.2]} 13... c4 {[%clk 0:03:44.6]} 14. d4 {[%clk
0:04:21.9]} 14... Qa5 {[%clk 0:03:39.4]} 15. g4 {[%clk 0:04:15.8]} 15... h5
{[%clk 0:03:31.8]} 16. h3 {[%clk 0:04:14.2]} 16... hxg4 {[%clk 0:03:30.4]} 17.
hxg4 {[%clk 0:04:13.3]} 17... O-O-O {[%clk 0:03:25.5]} 18. Qc2 {[%clk
0:03:59.1]} 18... Nb6 {[%clk 0:03:19.2]} 19. a4 {[%clk 0:03:50.6]} 19... Rdg8
{[%clk 0:03:00.8]} 20. Ba3 {[%clk 0:03:25.9]} 20... Bxa3 {[%clk 0:02:42.2]} 21.
Rxa3 {[%clk 0:03:23.4]} 21... Nd8 {[%clk 0:02:40.7]} 22. Qb2 {[%clk 0:03:05.7]}
22... Bb7 {[%clk 0:02:32.2]} 23. Qb4 {[%clk 0:02:48.2]} 23... Nc6 {[%clk
0:02:22.6]} 24. Qxa5 {[%clk 0:02:41.8]} 24... Nxa5 {[%clk 0:02:21.7]} 25. Ng5
{[%clk 0:02:37.9]} 25... Rg7 {[%clk 0:02:20.4]} 26. Nc1 {[%clk 0:02:29.3]} 26...
Bc6 {[%clk 0:02:17.5]} 27. Rfa2 {[%clk 0:02:27.3]} 27... Kd7 {[%clk 0:02:04.9]}
28. Bf3 {[%clk 0:02:25.4]} 28... Ke7 {[%clk 0:02:02.3]} 29. Bd1 {[%clk
0:02:21.7]} 29... Rgg8 {[%clk 0:01:59]} 30. Rh2 {[%clk 0:02:13.5]} 30... Rxh2
{[%clk 0:01:57.7]} 31. Kxh2 {[%clk 0:02:12.9]} 31... Rh8+ {[%clk 0:01:56.9]} 32.
Kg2 {[%clk 0:02:11.5]} 32... Rb8 {[%clk 0:01:42.3]} 33. Bc2 {[%clk 0:01:57.9]}
33... Be8 {[%clk 0:01:40.3]} 34. Nh7 {[%clk 0:01:38.9]} 34... Nc8 {[%clk
0:01:27]} 35. Ra2 {[%clk 0:01:35]} 35... Nb3 {[%clk 0:01:19.1]} 36. Ne2 {[%clk
0:01:33.2]} 36... a5 {[%clk 0:01:09.5]} 37. Nf6 {[%clk 0:01:29.2]} 37... Nb6
{[%clk 0:01:06.6]} 38. Nxe8 {[%clk 0:01:23.7]} 38... Kxe8 {[%clk 0:01:05.7]} 39.
f5 {[%clk 0:01:19.7]} 39... gxf5 {[%clk 0:01:03.1]} 40. gxf5 {[%clk 0:01:18.4]}
40... exf5 {[%clk 0:00:59.7]} 41. Bxf5 {[%clk 0:01:16.4]} 41... Ke7 {[%clk
0:00:57.5]} 42. Nf4 {[%clk 0:01:06]} 42... Rg8+ {[%clk 0:00:56.1]} 43. Kf2
{[%clk 0:01:03.1]} 43... Rh8 {[%clk 0:00:49.5]} 44. Kg2 {[%clk 0:00:59]} 44...
Rh4 {[%clk 0:00:45.3]} 45. Ne2 {[%clk 0:00:48.3]} 45... f6 {[%clk 0:00:43.3]}
46. exf6+ {[%clk 0:00:45.3]} 46... Kxf6 {[%clk 0:00:42.6]} 47. Bc2 {[%clk
0:00:43.6]} 47... Ke6 {[%clk 0:00:32]} 48. Ra3 {[%clk 0:00:30.2]} 48... Nd2
{[%clk 0:00:27.7]} 49. Ra1 {[%clk 0:00:20.1]} 49... Kd6 {[%clk 0:00:26.7]} 50.
Rd1 {[%clk 0:00:14.6]} 50... Ne4 {[%clk 0:00:26]} 51. Rb1 {[%clk 0:00:13.2]}
51... Kc6 {[%clk 0:00:25.2]} 52. Rb5 {[%clk 0:00:07.3]} 52... Rg4+ {[%clk
0:00:24.2]} 53. Kf3 {[%clk 0:00:05.6]} 53... Rg6 {[%clk 0:00:23.3]} 54. Rxa5
{[%clk 0:00:04.3]} 54... Rf6+ {[%clk 0:00:23.2]} 55. Kg4 {[%clk 0:00:03]} 55...
Rf2 {[%clk 0:00:22.2]} 56. Bxe4 {[%clk 0:00:01.4]} 56... dxe4 {[%clk 0:00:20]}
0-1

[Event "Live Chess"]
[Site "Chess.com"]
[Date "2023.05.20"]
[Round "-"]
[White "Hussamalhaidar"]
[Black "Kr1xot4_XGOD"]
[Result "0-1"]
[WhiteElo "961"]
[BlackElo "2199"]
[TimeControl "300"]
[EndTime "9:33:16 PDT"]
[Termination "Kr1xot4_XGOD won by checkmate"]

1. b3 {[%clk 0:04:56.5]} 1... d5 {[%clk 0:04:57.3]} 2. Bb2 {[%clk 0:04:54.4]}
2... c5 {[%clk 0:04:54.5]} 3. e3 {[%clk 0:04:52.1]} 3... Nf6 {[%clk 0:04:45]} 4.
d3 {[%clk 0:04:48.7]} 4... d4 {[%clk 0:04:42.4]} 5. exd4 {[%clk 0:04:35.5]} 5...
cxd4 {[%clk 0:04:41.7]} 6. Nf3 {[%clk 0:04:34.8]} 6... e5 {[%clk 0:04:38.1]} 7.
Nxe5 {[%clk 0:04:26.5]} 7... Bb4+ {[%clk 0:04:32.6]} 8. c3 {[%clk 0:04:14.2]}
8... dxc3 {[%clk 0:04:32.1]} 9. Bxc3 {[%clk 0:04:07.6]} 9... Nd5 {[%clk
0:04:31]} 10. Nxf7 {[%clk 0:03:41.9]} 10... Nxc3 {[%clk 0:04:16.6]} 11. Nxc3
{[%clk 0:03:28.4]} 11... Bxc3+ {[%clk 0:04:10.1]} 12. Ke2 {[%clk 0:03:26.3]}
12... Kxf7 {[%clk 0:04:01.2]} 13. Rc1 {[%clk 0:03:18.7]} 13... Qe7+ {[%clk
0:03:56.7]} 14. Kf3 {[%clk 0:03:15.8]} 14... Qf6+ {[%clk 0:03:56]} 15. Kg3
{[%clk 0:03:09.1]} 15... Qg5+ {[%clk 0:03:49.3]} 16. Kf3 {[%clk 0:03:04.8]}
16... Qg4+ {[%clk 0:03:43.2]} 17. Ke3 {[%clk 0:02:59.8]} 17... Re8# {[%clk
0:03:42.1]} 0-1

[Event "Live Chess"]
[Site "Chess.com"]
[Date "2023.05.20"]
[Round "-"]
[White "boilerboy1"]
[Black "domrobson"]
[Result "1-0"]
[WhiteElo "1095"]
[BlackElo "1725"]
[TimeControl "300"]
[EndTime "9:33:18 PDT"]
[Termination "boilerboy1 won by resignation"]

1. e4 {[%clk 0:04:55.9]} 1... e5 {[%clk 0:04:58.2]} 2. Nf3 {[%clk 0:04:54.2]}
2... Nc6 {[%clk 0:04:57]} 3. Nc3 {[%clk 0:04:52.6]} 3... Nf6 {[%clk 0:04:56.3]}
4. Be2 {[%clk 0:04:50.4]} 4... Bb4 {[%clk 0:04:54.2]} 5. O-O {[%clk 0:04:48.4]}
5... d6 {[%clk 0:04:53]} 6. d3 {[%clk 0:04:46.5]} 6... Bg4 {[%clk 0:04:50.9]} 7.
Bg5 {[%clk 0:04:44.4]} 7... h6 {[%clk 0:04:49.5]} 8. Bh4 {[%clk 0:04:42.6]} 8...
g5 {[%clk 0:04:48.5]} 9. Bg3 {[%clk 0:04:40.5]} 9... Be6 {[%clk 0:04:45.3]} 10.
a3 {[%clk 0:04:37.1]} 10... Bxc3 {[%clk 0:04:43.7]} 11. bxc3 {[%clk 0:04:34.8]}
11... h5 {[%clk 0:04:38.8]} 12. h4 {[%clk 0:04:32.8]} 12... g4 {[%clk
0:04:34.7]} 13. Ng5 {[%clk 0:04:31.1]} 13... Qe7 {[%clk 0:04:32.9]} 14. Nxe6
{[%clk 0:04:28.5]} 14... Qxe6 {[%clk 0:04:28.9]} 15. Re1 {[%clk 0:04:21]} 15...
O-O {[%clk 0:04:24.1]} 16. f3 {[%clk 0:04:16.9]} 16... Kh8 {[%clk 0:04:19.1]}
17. f4 {[%clk 0:04:10.2]} 17... b6 {[%clk 0:04:08.3]} 18. f5 {[%clk 0:04:06.6]}
18... Qc8 {[%clk 0:04:01.3]} 19. Qd2 {[%clk 0:04:04.8]} 19... Nh7 {[%clk
0:03:56.5]} 20. Qh6 {[%clk 0:04:00]} 1-0

[Event "Live Chess"]
[Site "Chess.com"]
[Date "2023.05.20"]
[Round "-"]
[White "PureMellowPlan"]
[Black "Jo1ts"]
[Result "1/2-1/2"]
[WhiteElo "606"]
[BlackElo "741"]
[TimeControl "300"]
[EndTime "9:33:28 PDT"]
[Termination "Game drawn - insufficient material"]

1. e4 {[%clk 0:04:55.8]} 1... d5 {[%clk 0:04:58.7]} 2. exd5 {[%clk 0:04:53.6]}
2... Qxd5 {[%clk 0:04:58.6]} 3. Nc3 {[%clk 0:04:52.4]} 3... Qd8 {[%clk
0:04:57.9]} 4. Nf3 {[%clk 0:04:50.8]} 4... Nc6 {[%clk 0:04:56.4]} 5. d4 {[%clk
0:04:48.5]} 5... Nf6 {[%clk 0:04:53.6]} 6. Be3 {[%clk 0:04:45.6]} 6... e6 {[%clk
0:04:47.6]} 7. Bb5 {[%clk 0:04:42.1]} 7... Bd7 {[%clk 0:04:45.5]} 8. Bxc6 {[%clk
0:04:39.9]} 8... Bxc6 {[%clk 0:04:43.8]} 9. O-O {[%clk 0:04:36.1]} 9... Bb4
{[%clk 0:04:39]} 10. Bd2 {[%clk 0:04:31.2]} 10... O-O {[%clk 0:04:36.3]} 11. a3
{[%clk 0:04:30.2]} 11... Bd6 {[%clk 0:04:31.3]} 12. Ne5 {[%clk 0:04:25]} 12...
Bd5 {[%clk 0:04:12.2]} 13. Nxd5 {[%clk 0:04:10.6]} 13... exd5 {[%clk 0:04:10.6]}
14. Nd3 {[%clk 0:04:05.4]} 14... Re8 {[%clk 0:04:02.5]} 15. Re1 {[%clk
0:04:02.8]} 15... Rxe1+ {[%clk 0:03:53.7]} 16. Qxe1 {[%clk 0:03:59.9]} 16... Qd7
{[%clk 0:03:50.4]} 17. Bg5 {[%clk 0:03:48.5]} 17... Ng4 {[%clk 0:03:39.6]} 18.
f3 {[%clk 0:03:44.7]} 18... Nxh2 {[%clk 0:03:27.3]} 19. Bf4 {[%clk 0:03:38.6]}
19... Nxf3+ {[%clk 0:03:14.1]} 20. gxf3 {[%clk 0:03:33.9]} 20... Bxf4 {[%clk
0:02:57.8]} 21. Nxf4 {[%clk 0:03:31.9]} 21... Qf5 {[%clk 0:02:54.6]} 22. Nd3
{[%clk 0:03:28.7]} 22... Qxf3 {[%clk 0:02:48.4]} 23. Qf2 {[%clk 0:03:24.7]}
23... Qxf2+ {[%clk 0:02:44.7]} 24. Kxf2 {[%clk 0:03:23]} 24... h6 {[%clk
0:02:44.1]} 25. Re1 {[%clk 0:03:21]} 25... Rd8 {[%clk 0:02:36.9]} 26. Re7 {[%clk
0:03:17.5]} 26... Rc8 {[%clk 0:02:28.9]} 27. Re5 {[%clk 0:03:14.6]} 27... c6
{[%clk 0:02:26.1]} 28. Nb4 {[%clk 0:03:13]} 28... Rc7 {[%clk 0:02:22.1]} 29. Nd3
{[%clk 0:03:09.3]} 29... Rd7 {[%clk 0:02:16.7]} 30. Re8+ {[%clk 0:03:01.9]}
30... Kh7 {[%clk 0:02:13.8]} 31. Ne5 {[%clk 0:03:00.2]} 31... Rc7 {[%clk
0:02:06.4]} 32. Rf8 {[%clk 0:02:56.4]} 32... f6 {[%clk 0:02:01.1]} 33. Rf7
{[%clk 0:02:51.5]} 33... Rxf7 {[%clk 0:01:58.9]} 34. Nxf7 {[%clk 0:02:50.1]}
34... b6 {[%clk 0:01:52.6]} 35. Nd6 {[%clk 0:02:46.6]} 35... c5 {[%clk
0:01:49.8]} 36. dxc5 {[%clk 0:02:44.8]} 36... bxc5 {[%clk 0:01:48.6]} 37. b4
{[%clk 0:02:42.8]} 37... cxb4 {[%clk 0:01:45.8]} 38. axb4 {[%clk 0:02:41.2]}
38... Kg6 {[%clk 0:01:45.2]} 39. Nb7 {[%clk 0:02:37.9]} 39... Kf5 {[%clk
0:01:43.6]} 40. Ke3 {[%clk 0:02:36.2]} 40... Ke5 {[%clk 0:01:42.5]} 41. Kd3
{[%clk 0:02:35.3]} 41... Ke6 {[%clk 0:01:36.7]} 42. Kd4 {[%clk 0:02:33.9]} 42...
Kd7 {[%clk 0:01:35.6]} 43. Nc5+ {[%clk 0:02:32.4]} 43... Kc6 {[%clk 0:01:33.8]}
44. c4 {[%clk 0:02:30.1]} 44... dxc4 {[%clk 0:01:31.6]} 45. Kxc4 {[%clk
0:02:28.9]} 45... g5 {[%clk 0:01:30.2]} 46. Ne4 {[%clk 0:02:26.9]} 46... f5
{[%clk 0:01:28.1]} 47. Nf6 {[%clk 0:02:21.3]} 47... g4 {[%clk 0:01:22.5]} 48.
Kd3 {[%clk 0:02:19.5]} 48... Kb5 {[%clk 0:01:15]} 49. Ke3 {[%clk 0:02:13.3]}
49... Kxb4 {[%clk 0:01:09.7]} 50. Kf4 {[%clk 0:02:12.3]} 50... a5 {[%clk
0:01:09]} 51. Kxf5 {[%clk 0:02:08.1]} 51... a4 {[%clk 0:01:08.5]} 52. Nxg4
{[%clk 0:02:06.4]} 52... a3 {[%clk 0:01:07.7]} 53. Nxh6 {[%clk 0:02:05.4]} 53...
a2 {[%clk 0:01:06.2]} 54. Ng4 {[%clk 0:02:04.1]} 54... a1=Q {[%clk 0:01:05.4]}
55. Ne5 {[%clk 0:02:02.3]} 55... Kc5 {[%clk 0:01:03.2]} 56. Nf7 {[%clk
0:01:56.9]} 56... Qf1+ {[%clk 0:00:59.6]} 57. Kg6 {[%clk 0:01:55.8]} 57... Kd5
{[%clk 0:00:57.9]} 58. Kg7 {[%clk 0:01:54]} 58... Ke6 {[%clk 0:00:56.9]} 59.
Nd8+ {[%clk 0:01:52.2]} 59... Ke7 {[%clk 0:00:53.9]} 60. Nc6+ {[%clk 0:01:50.5]}
60... Ke8 {[%clk 0:00:50.2]} 61. Ne5 {[%clk 0:01:46.4]} 61... Qg2+ {[%clk
0:00:47.2]} 62. Ng6 {[%clk 0:01:43.8]} 62... Qb7+ {[%clk 0:00:45.2]} 63. Kh6
{[%clk 0:01:41.2]} 63... Kf7 {[%clk 0:00:43.8]} 64. Nf4 {[%clk 0:01:37.9]} 64...
Qc6+ {[%clk 0:00:40]} 65. Kg5 {[%clk 0:01:36.8]} 65... Qf6+ {[%clk 0:00:38.7]}
66. Kg4 {[%clk 0:01:35.8]} 66... Kg7 {[%clk 0:00:35]} 67. Nh5+ {[%clk
0:01:34.6]} 67... Kg6 {[%clk 0:00:30.6]} 68. Nxf6 {[%clk 0:01:33.5]} 1/2-1/2

[Event "Live Chess"]
[Site "Chess.com"]
[Date "2023.05.20"]
[Round "-"]
[White "AwesomeFredster"]
[Black "JanMur7"]
[Result "0-1"]
[WhiteElo "1570"]
[BlackElo "1980"]
[TimeControl "300"]
[EndTime "9:33:31 PDT"]
[Termination "JanMur7 won by checkmate"]

1. e4 {[%clk 0:04:58.8]} 1... e5 {[%clk 0:04:58.3]} 2. Nf3 {[%clk 0:04:57.9]}
2... Nc6 {[%clk 0:04:57.5]} 3. Nc3 {[%clk 0:04:55.1]} 3... Nf6 {[%clk
0:04:56.5]} 4. d4 {[%clk 0:04:54.1]} 4... exd4 {[%clk 0:04:55.6]} 5. Nd5 {[%clk
0:04:53.2]} 5... Be7 {[%clk 0:04:45.3]} 6. Bc4 {[%clk 0:04:41.7]} 6... O-O
{[%clk 0:04:37.9]} 7. Nxe7+ {[%clk 0:04:37.7]} 7... Qxe7 {[%clk 0:04:35]} 8.
Nxd4 {[%clk 0:04:35.8]} 8... Qxe4+ {[%clk 0:04:27.8]} 9. Be3 {[%clk 0:04:32.9]}
9... Nxd4 {[%clk 0:04:05.4]} 10. Qxd4 {[%clk 0:04:31.6]} 10... Qxd4 {[%clk
0:04:01.8]} 11. Bxd4 {[%clk 0:04:30.2]} 11... Re8+ {[%clk 0:03:57.2]} 12. Kd2
{[%clk 0:04:27.3]} 12... Ne4+ {[%clk 0:03:55.6]} 13. Kc1 {[%clk 0:04:24.8]}
13... c5 {[%clk 0:03:52.6]} 14. Bc3 {[%clk 0:04:20.6]} 14... Nxc3 {[%clk
0:03:48.1]} 15. bxc3 {[%clk 0:04:19.5]} 15... d6 {[%clk 0:03:41.1]} 16. Kb2
{[%clk 0:04:16.3]} 16... Be6 {[%clk 0:03:39.7]} 17. Bb5 {[%clk 0:04:12.1]} 17...
Red8 {[%clk 0:03:38.6]} 18. Rhe1 {[%clk 0:04:10.3]} 18... a6 {[%clk 0:03:35.9]}
19. Ba4 {[%clk 0:04:09.1]} 19... b5 {[%clk 0:03:34.3]} 20. Bb3 {[%clk
0:04:08.5]} 20... c4 {[%clk 0:03:33.3]} 21. a4 {[%clk 0:04:03.2]} 21... cxb3
{[%clk 0:03:31.8]} 22. cxb3 {[%clk 0:04:02.4]} 22... Rab8 {[%clk 0:03:30.7]} 23.
axb5 {[%clk 0:04:01.2]} 23... Rxb5 {[%clk 0:03:30.6]} 24. Rxa6 {[%clk
0:03:59.3]} 24... Rxb3+ {[%clk 0:03:29.3]} 25. Kc2 {[%clk 0:03:57.7]} 25... Rdb8
{[%clk 0:03:24.1]} 26. Re3 {[%clk 0:03:49.4]} 26... Bc4 {[%clk 0:03:17.3]} 27.
Re4 {[%clk 0:03:43.3]} 27... Rb2+ {[%clk 0:03:12.7]} 28. Kc1 {[%clk 0:03:41.7]}
28... Rb1+ {[%clk 0:03:10.7]} 29. Kd2 {[%clk 0:03:40.9]} 29... Bxa6 {[%clk
0:03:08.5]} 30. Ra4 {[%clk 0:03:38.2]} 30... Bf1 {[%clk 0:03:01.6]} 31. Ke3
{[%clk 0:03:34.7]} 31... Bxg2 {[%clk 0:02:59.5]} 32. Kd4 {[%clk 0:03:33.4]}
32... Re1 {[%clk 0:02:54.7]} 33. c4 {[%clk 0:03:32.1]} 33... Rb3 {[%clk
0:02:46]} 34. f3 {[%clk 0:03:27.5]} 34... Bxf3 {[%clk 0:02:34.4]} 35. c5 {[%clk
0:03:26.6]} 35... Re4+ {[%clk 0:02:30.4]} 36. Kd5 {[%clk 0:03:24.9]} 36... Rxa4+
{[%clk 0:02:29.1]} 37. Kxd6 {[%clk 0:03:23.1]} 37... Rd4+ {[%clk 0:02:28.1]} 38.
Kc7 {[%clk 0:03:21.8]} 38... Rc3 {[%clk 0:02:26.8]} 39. Kc8 {[%clk 0:03:19.7]}
39... Rxc5+ {[%clk 0:02:25.4]} 40. Kb8 {[%clk 0:03:19]} 40... Rb4+ {[%clk
0:02:24.9]} 41. Ka7 {[%clk 0:03:17.4]} 41... Ra5# {[%clk 0:02:24.7]} 0-1

[Event "Live Chess"]
[Site "Chess.com"]
[Date "2023.05.20"]
[Round "-"]
[White "Doge_Dandolo"]
[Black "nigelst"]
[Result "1-0"]
[WhiteElo "2077"]
[BlackElo "1849"]
[TimeControl "300"]
[EndTime "9:33:33 PDT"]
[Termination "Doge_Dandolo won on time"]

1. Nf3 {[%clk 0:04:59]} 1... Nf6 {[%clk 0:04:56.3]} 2. c4 {[%clk 0:04:57.5]}
2... e6 {[%clk 0:04:55.1]} 3. g3 {[%clk 0:04:55.9]} 3... Be7 {[%clk 0:04:44]} 4.
Bg2 {[%clk 0:04:54.4]} 4... O-O {[%clk 0:04:43]} 5. O-O {[%clk 0:04:53.4]} 5...
d5 {[%clk 0:04:40.2]} 6. d4 {[%clk 0:04:51.6]} 6... c6 {[%clk 0:04:37.8]} 7. Qc2
{[%clk 0:04:50.4]} 7... Na6 {[%clk 0:04:34.3]} 8. Nbd2 {[%clk 0:04:45.2]} 8...
Nb4 {[%clk 0:04:31.1]} 9. Qb1 {[%clk 0:04:43.2]} 9... a5 {[%clk 0:04:12.8]} 10.
e4 {[%clk 0:04:39.2]} 10... dxe4 {[%clk 0:04:09.7]} 11. Nxe4 {[%clk 0:04:37.3]}
11... Nxe4 {[%clk 0:04:07.8]} 12. Qxe4 {[%clk 0:04:35.6]} 12... Bd7 {[%clk
0:03:48.9]} 13. Rd1 {[%clk 0:04:25.6]} 13... b5 {[%clk 0:03:32.3]} 14. a3 {[%clk
0:04:18.7]} 14... Na6 {[%clk 0:03:21.7]} 15. c5 {[%clk 0:03:59.8]} 15... Nc7
{[%clk 0:03:19.2]} 16. Ne5 {[%clk 0:03:55.8]} 16... Nd5 {[%clk 0:03:16.7]} 17.
h4 {[%clk 0:03:39.9]} 17... Bf6 {[%clk 0:03:15.5]} 18. Ng4 {[%clk 0:03:28.5]}
18... Be7 {[%clk 0:03:07.9]} 19. Bf4 {[%clk 0:03:20]} 19... f5 {[%clk
0:03:04.8]} 20. Qe2 {[%clk 0:03:09.3]} 20... fxg4 {[%clk 0:03:03]} 21. Be5
{[%clk 0:03:03.3]} 21... Bf6 {[%clk 0:02:56.4]} 22. Bd6 {[%clk 0:03:00.4]} 22...
Be7 {[%clk 0:02:49.5]} 23. Be5 {[%clk 0:02:58.9]} 23... Nf6 {[%clk 0:02:25.4]}
24. a4 {[%clk 0:02:51.7]} 24... b4 {[%clk 0:02:18.3]} 25. b3 {[%clk 0:02:26.2]}
25... Qe8 {[%clk 0:02:07.6]} 26. Rd3 {[%clk 0:02:14.8]} 26... Qg6 {[%clk
0:02:05.5]} 27. Re1 {[%clk 0:02:11.1]} 27... Nd5 {[%clk 0:01:57]} 28. Rd2 {[%clk
0:01:59.9]} 28... Rf7 {[%clk 0:01:43.9]} 29. Be4 {[%clk 0:01:57.3]} 29... Qh6
{[%clk 0:01:35.4]} 30. Rc2 {[%clk 0:01:49.3]} 30... Raf8 {[%clk 0:01:19.6]} 31.
Qxg4 {[%clk 0:01:45.9]} 31... Nc3 {[%clk 0:00:54]} 32. Bd3 {[%clk 0:01:33.7]}
32... Rf3 {[%clk 0:00:30.5]} 33. Bf4 {[%clk 0:01:28.8]} 33... R3xf4 {[%clk
0:00:29.3]} 34. gxf4 {[%clk 0:01:25.3]} 34... Rxf4 {[%clk 0:00:19.3]} 35. Qg3
{[%clk 0:01:07]} 35... Rxh4 {[%clk 0:00:18.2]} 36. Be4 {[%clk 0:00:56.5]} 36...
Rh3 {[%clk 0:00:14.6]} 37. Qb8+ {[%clk 0:00:53.5]} 37... Bf8 {[%clk 0:00:12.6]}
38. Bg2 {[%clk 0:00:48]} 38... Rh5 {[%clk 0:00:08.9]} 39. Re5 {[%clk 0:00:43.1]}
39... Rxe5 {[%clk 0:00:06]} 40. dxe5 {[%clk 0:00:41.4]} 40... Qg6 {[%clk
0:00:05.1]} 41. Rd2 {[%clk 0:00:37.2]} 41... Qb1+ {[%clk 0:00:03.7]} 42. Kh2
{[%clk 0:00:35.2]} 42... Qg6 {[%clk 0:00:02.5]} 43. Rxd7 {[%clk 0:00:32.5]}
43... Qh5+ {[%clk 0:00:00.8]} 44. Bh3 {[%clk 0:00:26.3]} 44... Ne2 {[%clk
0:00:00.7]} 45. Rd3 {[%clk 0:00:13.3]} 45... Qg5 {[%clk 0:00:00.6]} 46. Rg3
{[%clk 0:00:11.8]} 1-0